fUSD/lending_fUSD_20240502
["ID","MTS","AMOUNT","RATE_DAILY","PERIOD"]
[325301753,1714686655201,-755.86,0.00030409,4]
[325301754,1714686655210,-755.86,0.00030409,4]
[325301755,1714686655219,-755.86,0.00030409,4]
[325301756,1714686655229,-755.86,0.00030409,4]
[325301757,1714686655238,-755.86,0.00030409,4]
[325301758,1714686655247,-500.0,0.0003041,2]
[325301759,1714686655258,-500.0,0.0003041,2]
[325301760,1714686655268,-616.72,0.0003041,2]
[325301761,1714686655277,-630.6,0.0003041,2]
[325301762,1714686655286,-500.0,0.0003041,2]
[325301763,1714686655296,-500.0,0.0003041,2]
[325301764,1714686655305,-236.93111978,0.0003041,2]
[325301765,1714686655315,-500.0,0.0003041,2]
[325301766,1714686655324,-500.0,0.0003041,2]
[325301767,1714686655334,-500.0,0.0003041,2]
[325301768,1714686655344,-500.0,0.0003041,2]
[325301769,1714686655353,-1079.86,0.0003041,2]
[325301770,1714686655364,-629.54,0.0003041,2]
[325301771,1714686655373,-500.0,0.0003041,2]
[325301772,1714686655382,-500.0,0.0003041,2]
[325301773,1714686655391,-500.0,0.0003041,2]
[325301774,1714686655400,-500.0,0.0003041,2]
[325301775,1714686655409,-500.0,0.0003041,2]
[325301776,1714686655419,-500.0,0.0003041,2]
[325301777,1714686655428,-500.0,0.0003041,2]
[325301778,1714686655439,-500.0,0.0003041,2]
[325301779,1714686655447,-500.0,0.0003041,2]
[325301780,1714686655457,-500.0,0.0003041,2]
[325301781,1714686655467,-500.0,0.0003041,2]
[325301782,1714686655476,-500.0,0.0003041,2]
[325301783,1714686655485,-1020.91,0.0003041,2]
[325301784,1714686655494,-500.0,0.0003041,2]
[325301785,1714686655504,-500.0,0.0003041,2]
[325301786,1714686655513,-500.0,0.0003041,2]
[325301787,1714686655522,-786.92,0.0003041,2]
[325301788,1714686655531,-764.18,0.0003041,2]
[325301789,1714686655540,-700.09,0.0003041,2]
[325301790,1714686655550,-500.0,0.0003041,2]
[325301791,1714686655559,-647.0,0.0003041,2]
[325301792,1714686655568,-500.0,0.0003041,2]
[325301793,1714686655578,-500.0,0.0003041,2]
[325301794,1714686655587,-500.0,0.0003041,2]
[325301795,1714686655596,-500.0,0.0003041,2]
[325301796,1714686655606,-500.0,0.0003041,2]
[325301797,1714686655615,-600.66167978,0.0003041,2]
[325301798,1714686655625,-500.0,0.0003041,2]
[325301799,1714686655633,-500.0,0.0003041,2]
[325301800,1714686655643,-500.0,0.0003041,2]
[325301801,1714686655652,-500.0,0.0003041,2]
[325301802,1714686655662,-500.0,0.0003041,2]
[325301803,1714686655672,-500.0,0.0003041,2]
[325301804,1714686655682,-500.0,0.0003041,2]
[325301805,1714686655691,-500.0,0.0003041,2]
[325301806,1714686655700,-500.0,0.0003041,2]
[325301807,1714686655709,-500.0,0.0003041,2]
[325301808,1714686655718,-500.0,0.0003041,2]
[325301809,1714686655728,-684.48,0.0003041,2]
[325301810,1714686655737,-500.0,0.0003041,2]
[325301811,1714686655747,-382.1,0.0003041,2]
[325301812,1714686655758,-500.0,0.0003041,2]
[325301813,1714686655772,-500.0,0.0003041,2]
[325301814,1714686655799,-500.0,0.0003041,2]
[325301815,1714686655809,-500.0,0.0003041,2]
[325301816,1714686655819,-500.0,0.0003041,2]
[325301817,1714686655828,-500.0,0.0003041,2]
[325301818,1714686655837,-500.0,0.0003041,2]
[325301819,1714686655847,-500.0,0.0003041,2]
[325301820,1714686655857,-251.89449296,0.0003041,2]
[325301821,1714686655868,-500.0,0.0003041,2]
[325301822,1714686655878,-500.0,0.0003041,2]
[325301823,1714686655887,-500.0,0.0003041,2]
[325301824,1714686655896,-500.0,0.0003041,2]
[325301825,1714686655905,-300.75841032,0.0003041,2]
[325301826,1714686655915,-500.0,0.0003041,2]
[325301827,1714686655925,-541.55,0.0003041,2]
[325301828,1714686655934,-826.29,0.0003041,2]
[325301829,1714686655943,-618.89,0.0003041,2]
[325301830,1714686655953,-542.9,0.0003041,2]
[325301831,1714686655962,-500.0,0.0003041,2]
[325301832,1714686655972,-704.78,0.0003041,2]
[325301833,1714686655981,-942.43,0.0003041,2]
[325301834,1714686655991,-500.0,0.0003041,2]
[325301835,1714686655999,-500.0,0.0003041,2]
[325301836,1714686656011,-776.11,0.0003041,2]
[325301837,1714686656020,-500.0,0.0003041,2]
[325301838,1714686656030,-500.0,0.0003041,2]
[325301839,1714686656039,-500.0,0.0003041,2]
[325301840,1714686656048,-500.0,0.0003041,2]
[325301841,1714686656059,-500.0,0.0003041,2]
[325301842,1714686656069,-731.87,0.0003041,2]
[325301843,1714686656079,-500.0,0.0003041,2]
[325301844,1714686656089,-1384.97,0.0003041,2]
[325301845,1714686656099,-1215.97,0.0003041,2]
[325301846,1714686656108,-1055.93,0.0003041,2]
[325301847,1714686656117,-500.0,0.0003041,2]
[325301848,1714686656127,-500.0,0.0003041,2]
[325301849,1714686656142,-861.26,0.0003041,2]
[325301850,1714686656151,-1847.22,0.0003041,2]
[325301851,1714686656160,-500.0,0.0003041,2]
[325301852,1714686656170,-500.0,0.0003041,2]
[325301853,1714686656179,-500.0,0.0003041,2]
[325301854,1714686656188,-500.0,0.0003041,2]
[325301855,1714686656198,-500.0,0.0003041,2]
[325301856,1714686656208,-500.0,0.0003041,2]
[325301857,1714686656217,-929.74,0.0003041,2]
[325301858,1714686656226,-724.58,0.0003041,2]
[325301859,1714686656235,-500.0,0.0003041,2]
[325301860,1714686656244,-621.181752,0.0003041,7]
[325301861,1714686656255,-500.0,0.0003041,2]
[325301862,1714686656263,-621.181752,0.0003041,7]
[325301863,1714686656273,-500.0,0.0003041,2]
[325301864,1714686656282,-1237.03,0.0003041,2]
[325301865,1714686656291,-500.0,0.0003041,2]
[325301866,1714686656300,-500.0,0.0003041,2]
[325301867,1714686656310,-500.0,0.0003041,2]
[325301868,1714686656319,-500.0,0.0003041,2]
[325301869,1714686656328,-254.40095,0.0003041,7]
[325301870,1714686656338,-590.83,0.0003041,2]
[325301871,1714686656347,-725.05,0.0003041,2]
[325301872,1714686656361,-500.0,0.0003041,2]
[325301873,1714686656370,-882.58,0.0003041,2]
[325301874,1714686656380,-500.0,0.0003041,2]
[325301875,1714686656389,-500.0,0.0003041,2]
[325301876,1714686656398,-151.0,0.0003041,7]
[325301877,1714686656407,-500.0,0.0003041,2]
[325301878,1714686656417,-1112.75,0.0003041,2]
[325301879,1714686656426,-218.209533,0.0003041,7]
[325301880,1714686656435,-1336.38,0.0003041,2]
[325301881,1714686656444,-1118.89,0.0003041,2]
[325301882,1714686656454,-225.948735,0.0003041,7]
[325301883,1714686656464,-526.82,0.0003041,2]
[325301884,1714686656473,-452.05599464,0.0003041,2]
[325301885,1714686656483,-500.0,0.0003041,2]
[325301886,1714686656493,-757.64,0.0003041,2]
[325301887,1714686656502,-500.0,0.0003041,2]
[325301888,1714686656511,-828.85,0.0003041,2]
[325301889,1714686656521,-1523.89,0.0003041,2]
[325301890,1714686656531,-1630.18,0.0003041,2]
[325301891,1714686656540,-1520.91,0.0003041,2]
[325301892,1714686656549,-1341.05,0.0003041,2]
[325301893,1714686656559,-1575.91,0.0003041,2]
[325301894,1714686656568,-1156.59,0.0003041,2]
[325301895,1714686656577,-1234.29,0.0003041,2]
[325301896,1714686656587,-500.0,0.0003041,2]
[325301897,1714686656599,-500.0,0.0003041,2]
[325301898,1714686656609,-500.0,0.0003041,2]
[325301899,1714686656619,-1379.45,0.0003041,2]
[325301900,1714686656629,-1081.73,0.0003041,2]
[325301901,1714686656638,-500.0,0.0003041,2]
[325301902,1714686656648,-500.0,0.0003041,2]
[325301903,1714686656657,-627.86,0.0003041,2]
[325301904,1714686656667,-1784.93,0.0003041,2]
[325301905,1714686656676,-1787.05,0.0003041,2]
[325301906,1714686656685,-2310.93,0.0003041,2]
[325301907,1714686656695,-803.88,0.0003041,2]
[325301908,1714686656704,-500.0,0.0003041,2]
[325301909,1714686656713,-951.25,0.0003041,2]
[325301910,1714686656722,-629.38,0.0003041,2]
[325301911,1714686656732,-500.0,0.0003041,2]
[325301912,1714686656741,-1775.25,0.0003041,2]
[325301913,1714686656750,-724.87,0.0003041,2]
[325301914,1714686656761,-2651.42,0.0003041,2]
[325301915,1714686656770,-500.0,0.0003041,2]
[325301916,1714686656781,-500.0,0.0003041,2]
[325301917,1714686656790,-500.0,0.0003041,2]
[325301918,1714686656803,-1141.57,0.0003041,2]
[325301919,1714686656814,-915.13,0.0003041,2]
[325301920,1714686656823,-500.0,0.0003041,2]
[325301921,1714686656833,-1708.98,0.0003041,2]
[325301922,1714686656842,-500.0,0.0003041,2]
[325301923,1714686656851,-768.81,0.0003041,2]
[325301924,1714686656861,-574.88,0.0003041,2]
[325301925,1714686656870,-500.0,0.0003041,2]
[325301926,1714686656880,-1450.02,0.0003041,2]
[325301927,1714686656890,-500.0,0.0003041,2]
[325301928,1714686656899,-500.0,0.0003041,2]
[325301929,1714686656916,-2149.48,0.0003041,2]
[325301930,1714686656926,-625.82,0.0003041,2]
[325301931,1714686656935,-1377.62,0.0003041,2]
[325301932,1714686656944,-800.27,0.0003041,2]
[325301933,1714686656953,-808.92,0.0003041,2]
[325301934,1714686656963,-1162.28,0.0003041,2]
[325301935,1714686656972,-1189.64,0.0003041,2]
[325301936,1714686656982,-2032.19,0.0003041,2]
[325301937,1714686656991,-500.0,0.0003041,2]
[325301938,1714686657000,-900.6,0.0003041,2]
[325301939,1714686657011,-947.18,0.0003041,2]
[325301940,1714686657021,-869.74,0.0003041,2]
[325301941,1714686657030,-500.0,0.0003041,2]
[325301942,1714686657039,-814.78,0.0003041,2]
[325301943,1714686657128,-500.0,0.0003041,2]
[325301944,1714686657138,-687.46,0.0003041,2]
[325301945,1714686657147,-2264.77,0.0003041,2]
[325301946,1714686657156,-500.0,0.0003041,2]
[325301947,1714686657165,-1199.66,0.0003041,2]
[325301948,1714686657174,-1330.34,0.0003041,2]
[325301949,1714686657184,-669.49,0.0003041,2]
[325301950,1714686657193,-1543.7,0.0003041,2]
[325301951,1714686657202,-1058.86,0.0003041,2]
[325301952,1714686657211,-602.7,0.0003041,2]
[325301953,1714686657221,-1217.79,0.0003041,2]
[325301954,1714686657230,-500.0,0.0003041,2]
[325301955,1714686657240,-1365.42,0.0003041,2]
[325301956,1714686657249,-2315.09,0.0003041,2]
[325301957,1714686657261,-500.0,0.0003041,2]
[325301958,1714686657269,-500.0,0.0003041,2]
[325301959,1714686657278,-500.0,0.0003041,2]
[325301960,1714686657287,-500.0,0.0003041,2]
[325301961,1714686657296,-789.24,0.0003041,2]
[325301962,1714686657306,-1237.54,0.0003041,2]
[325301963,1714686657315,-500.0,0.0003041,2]
[325301964,1714686657323,-1341.99,0.0003041,2]
[325301965,1714686657332,-1079.08,0.0003041,2]
[325301966,1714686657341,-1077.83,0.0003041,2]
[325301967,1714686657351,-500.0,0.0003041,2]
[325301968,1714686657359,-500.0,0.0003041,2]
[325301969,1714686657368,-516.97495975,0.0003041,2]
[325301970,1714686657377,-539.77,0.0003041,2]
[325301971,1714686657386,-1453.69,0.0003041,2]
[325301972,1714686657395,-500.0,0.0003041,2]
[325301973,1714686657404,-500.0,0.0003041,2]
[325301974,1714686657413,-500.0,0.0003041,2]
[325301975,1714686657422,-1558.22,0.0003041,2]
[325301976,1714686657432,-1080.4,0.0003041,2]
[325301977,1714686657440,-500.0,0.0003041,2]
[325301978,1714686657449,-500.0,0.0003041,2]
[325301979,1714686657458,-500.0,0.0003041,2]
[325301980,1714686657468,-500.0,0.0003041,2]
[325301981,1714686657476,-500.0,0.0003041,2]
[325301982,1714686657486,-992.99,0.0003041,2]
[325301983,1714686657495,-500.0,0.0003041,2]
[325301984,1714686657506,-500.0,0.0003041,2]
[325301985,1714686657514,-500.0,0.0003041,2]
[325301986,1714686657523,-1851.96,0.0003041,2]
[325301987,1714686657532,-500.0,0.0003041,2]
[325301988,1714686657541,-500.0,0.0003041,2]
[325301989,1714686657551,-864.81,0.0003041,2]
[325301990,1714686657560,-500.0,0.0003041,2]
[325301991,1714686657569,-1006.44,0.0003041,2]
[325301992,1714686657578,-500.0,0.0003041,2]
[325301993,1714686657588,-500.0,0.0003041,2]
[325301994,1714686657598,-1062.68,0.0003041,2]
[325301995,1714686657607,-657.12,0.0003041,2]
[325301996,1714686657616,-781.89,0.0003041,2]
[325301997,1714686657625,-1374.32,0.0003041,2]
[325301998,1714686657635,-1135.77,0.0003041,2]
[325301999,1714686657644,-744.61,0.0003041,2]
[325302000,1714686657653,-933.59,0.0003041,2]
[325302001,1714686657662,-896.08,0.0003041,2]
[325302002,1714686657671,-2273.23,0.0003041,2]
[325302003,1714686657680,-559.35,0.0003041,2]
[325302004,1714686657690,-2267.57,0.0003041,2]
[325302005,1714686657699,-1070.0,0.0003041,2]
[325302006,1714686657709,-239.25699803,0.0003041,2]
[325302007,1714686657719,-500.0,0.0003041,2]
[325302008,1714686657728,-859.36,0.0003041,2]
[325302009,1714686657739,-500.0,0.0003041,2]
[325302010,1714686657749,-175.22847585,0.0003041,2]
[325302011,1714686657758,-647.12,0.0003041,2]
[325302012,1714686657767,-500.0,0.0003041,2]
[325302013,1714686657781,-862.54,0.0003041,2]
[325302014,1714686657790,-810.54,0.0003041,2]
[325302015,1714686657800,-2039.77,0.0003041,2]
[325302016,1714686657809,-1136.95,0.0003041,2]
[325302017,1714686657819,-500.0,0.0003041,2]
[325302018,1714686657828,-500.0,0.0003041,2]
[325302019,1714686657837,-500.0,0.0003041,2]
[325302020,1714686657846,-500.0,0.0003041,2]
[325302021,1714686657855,-500.0,0.0003041,2]
[325302022,1714686657864,-1286.93,0.0003041,2]
[325302023,1714686657874,-635.61785184,0.0003041,2]
[325302024,1714686657883,-857.57,0.0003041,2]
[325302025,1714686657892,-500.0,0.0003041,2]
[325302026,1714686657901,-565.96,0.0003041,2]
[325302027,1714686657910,-1203.69,0.0003041,2]
[325302028,1714686657919,-612.04,0.0003041,2]
[325302029,1714686657929,-500.0,0.0003041,2]
[325302030,1714686657937,-1636.54,0.0003041,2]
[325302031,1714686657946,-500.0,0.0003041,2]
[325302032,1714686657955,-1084.39,0.0003041,2]
[325302033,1714686657964,-1293.33,0.0003041,2]
[325302034,1714686657973,-978.77,0.0003041,2]
[325302035,1714686657982,-719.47,0.0003041,2]
[325302036,1714686657991,-996.06,0.0003041,2]
[325302037,1714686658000,-807.45,0.0003041,2]
[325302038,1714686658011,-500.0,0.0003041,2]
[325302039,1714686658021,-1052.5,0.0003041,2]
[325302040,1714686658030,-1167.84,0.0003041,2]
[325302041,1714686658039,-678.17,0.0003041,2]
[325302042,1714686658048,-500.0,0.0003041,2]
[325302043,1714686658058,-500.0,0.0003041,2]
[325302044,1714686658067,-500.0,0.0003041,2]
[325302045,1714686658077,-716.58,0.0003041,2]
[325302046,1714686658087,-1707.55,0.0003041,2]
[325302047,1714686658096,-827.94,0.0003041,2]
[325302048,1714686658105,-1060.89,0.0003041,2]
[325302049,1714686658114,-1070.32,0.0003041,2]
[325302050,1714686658124,-2324.94,0.0003041,2]
[325302051,1714686658133,-1370.43,0.0003041,2]
[325302052,1714686658143,-500.0,0.0003041,2]
[325302053,1714686658153,-1062.63,0.0003041,2]
[325302054,1714686658163,-613.91,0.0003041,2]
[325302055,1714686658173,-500.0,0.0003041,2]
[325302056,1714686658184,-1609.03,0.0003041,2]
[325302057,1714686658194,-3067.2,0.0003041,2]
[325302058,1714686658204,-500.0,0.0003041,2]
[325302059,1714686658214,-941.35,0.0003041,2]
[325302060,1714686658224,-1369.72,0.0003041,2]
[325302061,1714686658234,-500.0,0.0003041,2]
[325302062,1714686658247,-500.0,0.0003041,2]
[325302063,1714686658263,-500.0,0.0003041,2]
[325302064,1714686658274,-2549.22,0.0003041,2]
[325302065,1714686658285,-1593.06,0.0003041,2]
[325302066,1714686658296,-500.0,0.0003041,2]
[325302067,1714686658309,-500.0,0.0003041,2]
[325302068,1714686658319,-631.51100198,0.0003041,2]
[325302069,1714686658329,-1276.59,0.0003041,2]
[325302070,1714686658339,-672.98,0.0003041,2]
[325302071,1714686658353,-575.89,0.0003041,2]
[325302072,1714686658364,-500.0,0.0003041,2]
[325302073,1714686658375,-532.54,0.0003041,2]
[325302074,1714686658386,-1415.22,0.0003041,2]
[325302075,1714686658397,-544.16,0.0003041,2]
[325302076,1714686658408,-3028.77,0.0003041,2]
[325302077,1714686658419,-500.0,0.0003041,2]
[325302078,1714686658429,-523.28,0.0003041,2]
[325302079,1714686658440,-500.0,0.0003041,2]
[325302080,1714686658451,-500.0,0.0003041,2]
[325302081,1714686658461,-578.3,0.0003041,2]
[325302082,1714686658472,-515.53,0.0003041,2]
[325302083,1714686658482,-500.0,0.0003041,2]
[325302084,1714686658493,-950.5,0.0003041,2]
[325302085,1714686658508,-500.0,0.0003041,2]
[325302086,1714686658520,-500.0,0.0003041,2]
[325302087,1714686658530,-1075.44,0.0003041,2]
[325302088,1714686658540,-500.0,0.0003041,2]
[325302089,1714686658549,-533.2,0.0003041,2]
[325302090,1714686658559,-542.01,0.0003041,2]
[325302091,1714686658569,-770.69,0.0003041,2]
[325302092,1714686658578,-500.0,0.0003041,2]
[325302093,1714686658587,-743.56,0.0003041,2]
[325302094,1714686658597,-947.85,0.0003041,2]
[325302095,1714686658607,-500.0,0.0003041,2]
[325302096,1714686658616,-1179.98,0.0003041,2]
[325302097,1714686658626,-676.03,0.0003041,2]
[325302098,1714686658635,-500.0,0.0003041,2]
[325302099,1714686658644,-653.28,0.0003041,2]
[325302100,1714686658653,-500.0,0.0003041,2]
[325302101,1714686658662,-500.0,0.0003041,2]
[325302102,1714686658671,-500.0,0.0003041,2]
[325302103,1714686658681,-1221.83,0.0003041,2]
[325302104,1714686658690,-663.28,0.0003041,2]
[325302105,1714686658699,-500.0,0.0003041,2]
[325302106,1714686658708,-641.12,0.0003041,2]
[325302107,1714686658717,-500.0,0.0003041,2]
[325302108,1714686658727,-500.0,0.0003041,2]
[325302109,1714686658736,-745.75,0.0003041,2]
[325302110,1714686658745,-980.77,0.0003041,2]
[325302111,1714686658759,-500.0,0.0003041,2]
[325302112,1714686658768,-500.0,0.0003041,2]
[325302113,1714686658779,-500.0,0.0003041,2]
[325302114,1714686658788,-755.36,0.0003041,2]
[325302115,1714686658797,-1941.43,0.0003041,2]
[325302116,1714686658810,-907.92,0.0003041,2]
[325302117,1714686658819,-500.0,0.0003041,2]
[325302118,1714686658828,-500.0,0.0003041,2]
[325302119,1714686658837,-500.0,0.0003041,2]
[325302120,1714686658848,-500.0,0.0003041,2]
[325302121,1714686658857,-822.44,0.0003041,2]
[325302122,1714686658866,-500.0,0.0003041,2]
[325302123,1714686658875,-623.06,0.0003041,2]
[325302124,1714686658885,-500.0,0.0003041,2]
[325302125,1714686658894,-1230.66,0.0003041,2]
[325302126,1714686658903,-500.0,0.0003041,2]
[325302127,1714686658913,-500.0,0.0003041,2]
[325302128,1714686658922,-500.0,0.0003041,2]
[325302129,1714686658931,-520.02,0.0003041,2]
[325302130,1714686658940,-1115.54,0.0003041,2]
[325302131,1714686658949,-500.0,0.0003041,2]
[325302132,1714686658959,-500.0,0.0003041,2]
[325302133,1714686658968,-500.0,0.0003041,2]
[325302134,1714686658977,-868.71,0.0003041,2]
[325302135,1714686658986,-633.85,0.0003041,2]
[325302136,1714686658995,-500.0,0.0003041,2]
[325302137,1714686659007,-500.0,0.0003041,2]
[325302138,1714686659016,-500.0,0.0003041,2]
[325302139,1714686659025,-1001.32,0.0003041,2]
[325302140,1714686659035,-1367.19,0.0003041,2]
[325302141,1714686659043,-665.95,0.0003041,2]
[325302142,1714686659053,-500.0,0.0003041,2]
[325302143,1714686659064,-5116.35,0.0003041,2]
[325302144,1714686659074,-500.0,0.0003041,2]
[325302145,1714686659083,-500.0,0.0003041,2]
[325302146,1714686659092,-1539.85,0.0003041,2]
[325302147,1714686659102,-1454.53,0.0003041,2]
[325302148,1714686659111,-969.1,0.0003041,2]
[325302149,1714686659120,-500.0,0.0003041,2]
[325302150,1714686659129,-1106.61,0.0003041,2]
[325302151,1714686659138,-500.0,0.0003041,2]
[325302152,1714686659147,-500.0,0.0003041,2]
[325302153,1714686659156,-500.0,0.0003041,2]
[325302154,1714686659165,-500.0,0.0003041,2]
[325302155,1714686659174,-10444.68,0.0003041,2]
[325302156,1714686659184,-523.43,0.0003041,2]
[325302157,1714686659193,-500.0,0.0003041,2]
[325302158,1714686659202,-500.0,0.0003041,2]
[325302159,1714686659211,-1454.59,0.0003041,2]
[325302160,1714686659220,-500.0,0.0003041,2]
[325302161,1714686659229,-500.0,0.0003041,2]
[325302162,1714686659238,-1116.71,0.0003041,2]
[325302163,1714686659247,-986.4,0.0003041,2]
[325302164,1714686659258,-500.0,0.0003041,2]
[325302165,1714686659268,-500.0,0.0003041,2]
[325302166,1714686659276,-500.0,0.0003041,2]
[325302167,1714686659285,-851.27,0.0003041,2]
[325302168,1714686659294,-1973.86,0.0003041,2]
[325302169,1714686659303,-3577.68,0.0003041,2]
[325302170,1714686659312,-500.0,0.0003041,2]
[325302171,1714686659321,-500.0,0.0003041,2]
[325302172,1714686659330,-819.06,0.0003041,2]
[325302173,1714686659339,-500.0,0.0003041,2]
[325302174,1714686659348,-500.0,0.0003041,2]
[325302175,1714686659358,-887.83,0.0003041,2]
[325302176,1714686659368,-9615.22,0.0003041,2]
[325302177,1714686659377,-500.0,0.0003041,2]
[325302178,1714686659386,-746.33,0.0003041,2]
[325302179,1714686659395,-525.6,0.0003041,2]
[325302180,1714686659404,-1076.78,0.0003041,2]
[325302181,1714686659413,-1507.5,0.0003041,2]
[325302182,1714686659422,-1898.55,0.0003041,2]
[325302183,1714686659432,-638.34082056,0.0003041,2]
[325302184,1714686659441,-778.18,0.0003041,2]
[325302185,1714686659450,-1214.77,0.0003041,2]
[325302186,1714686659458,-1869.85,0.0003041,2]
[325302187,1714686659468,-500.0,0.0003041,2]
[325302188,1714686659477,-765.27,0.0003041,2]
[325302189,1714686659487,-1332.63,0.0003041,2]
[325302190,1714686659496,-1494.12,0.0003041,2]
[325302191,1714686659507,-2808.71,0.0003041,2]
[325302192,1714686659516,-848.89,0.0003041,2]
[325302193,1714686659525,-748.84,0.0003041,2]
[325302194,1714686659534,-26442.21,0.0003041,2]
[325302195,1714686659543,-500.0,0.0003041,2]
[325302196,1714686659553,-500.0,0.0003041,2]
[325302197,1714686659562,-7720.07,0.0003041,2]
[325302198,1714686659572,-748.05,0.0003041,2]
[325302199,1714686659581,-500.0,0.0003041,2]
[325302200,1714686659590,-1273.99,0.0003041,2]
[325302201,1714686659599,-862.76,0.0003041,2]
[325302202,1714686659609,-7197.96,0.0003041,2]
[325302203,1714686659617,-500.0,0.0003041,2]
[325302204,1714686659627,-16153.0,0.0003041,2]
[325302205,1714686659637,-847.87,0.0003041,2]
[325302206,1714686659647,-652.7,0.0003041,2]
[325302207,1714686659656,-759.69,0.0003041,2]
[325302208,1714686659665,-37893.06,0.0003041,2]
[325302209,1714686659675,-500.0,0.0003041,2]
[325302210,1714686659684,-623.36,0.0003041,2]
[325302211,1714686659693,-2087.53,0.0003041,2]
[325302212,1714686659702,-2200.02,0.0003041,2]
[325302213,1714686659711,-1420.9,0.0003041,2]
[325302214,1714686659721,-10025.94,0.0003041,2]
[325302215,1714686659730,-936.72,0.0003041,2]
[325302216,1714686659740,-899.02,0.0003041,2]
[325302217,1714686659749,-1013.84,0.0003041,2]
[325302218,1714686659761,-500.0,0.0003041,2]
[325302219,1714686659771,-2390.03,0.0003041,2]
[325302220,1714686659785,-3613.98,0.0003041,2]
[325302221,1714686659794,-2485.7,0.0003041,2]
[325302222,1714686659803,-2608.35,0.0003041,2]
[325302223,1714686659814,-623.79,0.0003041,2]
[325302224,1714686659824,-500.0,0.0003041,2]
[325302225,1714686659833,-500.0,0.0003041,2]
[325302226,1714686659841,-661.74,0.0003041,2]
[325302227,1714686659850,-813.27,0.0003041,2]
[325302228,1714686659859,-1084.38,0.0003041,2]
[325302229,1714686659869,-500.0,0.0003041,2]
[325302230,1714686659878,-500.0,0.0003041,2]
[325302231,1714686659888,-6799.36,0.0003041,2]
[325302232,1714686659897,-822.14,0.0003041,2]
[325302233,1714686659906,-2813.98,0.0003041,2]
[325302234,1714686659915,-500.0,0.0003041,2]
[325302235,1714686659925,-2091.13,0.0003041,2]
[325302236,1714686659934,-542.92,0.0003041,2]
[325302237,1714686659943,-500.0,0.0003041,2]
[325302238,1714686659954,-708.4,0.0003041,2]
[325302239,1714686659963,-500.0,0.0003041,2]
[325302240,1714686659972,-500.0,0.0003041,2]
[325302241,1714686659981,-2730.73,0.0003041,2]
[325302242,1714686659990,-500.0,0.0003041,2]
[325302243,1714686659999,-3095.6,0.0003041,2]
[325302244,1714686660010,-500.0,0.0003041,2]
[325302245,1714686660019,-2259.43,0.0003041,2]
[325302246,1714686660028,-521.83,0.0003041,2]
[325302247,1714686660037,-500.0,0.0003041,2]
[325302248,1714686660046,-1132.55,0.0003041,2]
[325302249,1714686660057,-601.93,0.0003041,2]
[325302250,1714686660067,-500.0,0.0003041,2]
[325302251,1714686660076,-9902.82,0.0003041,2]
[325302252,1714686660086,-500.0,0.0003041,2]